{"text_format":"1","workbook":"xlsx","n_sheets":1,"sheets":["Hoja1"],"not_rendered":{"charts":0,"images":0,"macros":1,"external_links":0,"defined_names":0,"comments":0,"pivot_tables":0},"unopened":[],"bounds":{"document_bytes":16777216,"sheet_cells":100000,"rows_first":2000,"rows_last":500,"rows_between":2000,"halvings":0,"cell_chars":16384,"cell_head_chars":4096},"cells_cut":0,"cells_raw":0,"read":"whole","date_system":"1900"}

{"sheet":"Hoja1","index":0,"n_rows":29,"n_cols":17,"rows_kept":29,"cut":false,"hidden":false,"merged":[[1,10,1,11],[2,10,2,11],[0,13,0,16],[1,16,2,16],[1,15,2,15],[1,13,2,14],[0,0,0,11],[1,2,1,3],[2,2,2,3],[2,4,2,5],[1,4,1,5],[2,6,2,7],[2,8,2,9],[1,6,1,7],[1,8,1,9],[1,0,2,1]]}
["CONCIENCIA E EXPRESIÓNS CULTURAIS - 5º PRIMARIA",null,null,null,null,null,null,null,null,null,null,null,null,"CONCIENCIA E EXPRES. CULTURAIS- 5º PRIMARIA"]
["5º A",null,"E. FÍSICA",null,"E. MUSICAL",null,"ED. PLÁSTICA",null,"L. CASTELÁ",null,"L. GALEGA",null,null,"5º A",null,"NOTA MEDIA","CUALIFICACIÓN"]
[null,null,"5º-EFB4.1.1 - Representa personaxes, situacións, ideas, sentimentos utilizando os recursos expresivos do corpo individualmente, en parellas ou en grupos.",null,"5º-EMB3.2.3 - Reproduce e goza interpretando danzas tradicionais galegas e doutras culturas.",null,"5º-EPB2.1.1 - Realiza composicións que transmitan emocións e sensacións básicas, utilizando distintos elementos e recursos para os axustar ás necesidades.",null,"5º-LCB5.4.1 - Crea sinxelos textos literarios (contos, poemas, cancións e sinxelas obras teatrais) a partir de pautas ou modelos dados.",null,"5º-LGB5.4.1 - Recrea e compón poemas e relatos, a partir de modelos sinxelos, para comunicar sentimentos, emocións, estados de ánimo e lembranzas."]
[null,"ALUMNO /A","Nota",0.15,"Nota",0.15,"Nota",0.2,null,0.2,"Nota",0.3,null,null,"ALUMNO /A",1]
[1,null,null,{"$f":"C5*0.15","v":0},null,{"$f":"E5*0.15","v":0},null,{"$f":"G5*0.2","v":0},null,{"$f":"I5*0.2","v":0},null,{"$f":"K5*0.3","v":0},null,1,null,{"$f":"SUM(L5,J5,H5,F5,D5,)","v":0},{"$f":"IF(P5<5,\"INSUFICIENTE\",IF(P5<6,\"SUFICIENTE\",IF(P5<7,\"BIEN\",IF(P5<9,\"NOTABLE\",\"SOBRESALIENTE\"))))","v":"INSUFICIENTE"}]
[2,null,null,{"$f":"C6*0.15","v":0},null,{"$f":"E6*0.15","v":0},null,{"$f":"G6*0.2","v":0},null,{"$f":"I6*0.2","v":0},null,{"$f":"K6*0.3","v":0},null,2,null,{"$f":"SUM(L6,J6,H6,F6,D6,)","v":0},{"$f":"IF(P6<5,\"INSUFICIENTE\",IF(P6<6,\"SUFICIENTE\",IF(P6<7,\"BIEN\",IF(P6<9,\"NOTABLE\",\"SOBRESALIENTE\"))))","v":"INSUFICIENTE"}]
[3,null,null,0,null,0,null,0,null,0,null,0,null,3,null,0,"INSUFICIENTE"]
[4,null,null,0,null,0,null,0,null,0,null,0,null,4,null,0,"INSUFICIENTE"]
[5,null,null,0,null,0,null,0,null,0,null,0,null,5,null,0,"INSUFICIENTE"]
[{"$f":"A9+1","v":6},null,null,0,null,0,null,0,null,0,null,0,null,{"$f":"N9+1","v":6},null,0,"INSUFICIENTE"]
[{"$f":"A10+1","v":7},null,null,0,null,0,null,0,null,0,null,0,null,{"$f":"N10+1","v":7},null,0,"INSUFICIENTE"]
[8,null,null,0,null,0,null,0,null,0,null,0,null,8,null,0,"INSUFICIENTE"]
[9,null,null,0,null,0,null,0,null,0,null,0,null,9,null,0,"INSUFICIENTE"]
[10,null,null,0,null,0,null,0,null,0,null,0,null,10,null,0,"INSUFICIENTE"]
[11,null,null,0,null,0,null,0,null,0,null,0,null,11,null,0,"INSUFICIENTE"]
[12,null,null,0,null,0,null,0,null,0,null,0,null,12,null,0,"INSUFICIENTE"]
[13,null,null,0,null,0,null,0,null,0,null,0,null,13,null,0,"INSUFICIENTE"]
[14,null,null,0,null,0,null,0,null,0,null,0,null,14,null,0,"INSUFICIENTE"]
[15,null,null,0,null,0,null,0,null,0,null,0,null,15,null,0,"INSUFICIENTE"]
[16,null,null,0,null,0,null,0,null,0,null,0,null,16,null,0,"INSUFICIENTE"]
[17,null,null,0,null,0,null,0,null,0,null,0,null,17,null,0,"INSUFICIENTE"]
[18,null,null,0,null,0,null,0,null,0,null,0,null,18,null,0,"INSUFICIENTE"]
[19,null,null,0,null,0,null,0,null,0,null,0,null,19,null,0,"INSUFICIENTE"]
[20,null,null,0,null,0,null,0,null,0,null,0,null,20,null,0,"INSUFICIENTE"]
[21,null,null,0,null,0,null,0,null,0,null,0,null,21,null,0,"INSUFICIENTE"]
[22,null,null,0,null,0,null,0,null,0,null,0,null,22,null,0,"INSUFICIENTE"]
[23,null,null,0,null,0,null,0,null,0,null,0,null,23,null,0,"INSUFICIENTE"]
[24,null,null,0,null,0,null,0,null,0,null,0,null,24,null,0,"INSUFICIENTE"]
[25,null,null,0,null,0,null,0,null,0,null,0,null,25,null,0,"INSUFICIENTE"]